bitfinex-derivatives/quotes_ETHF0:USTF0_20250110
["timestamp","ask_amount","ask_price","bid_price","bid_amount"]
[1736477641698,1.91594349,3242.7,3242.6,0.30844]
[1736477641896,1.91594349,3243.0,3242.8,0.30842]
[1736477642095,1.91594349,3243.0,3242.9,0.30841]
[1736477642301,1.91594349,3243.0,3242.5,0.9105]
[1736477642805,1.91594349,3243.0,3242.8,0.30842]
[1736477643199,1.91594349,3243.0,3242.6,0.30844]
[1736477643394,1.91594349,3243.0,3242.8,0.30841]
[1736477643805,1.91594349,3243.0,3242.9,0.30841]
[1736477644106,1.91594349,3243.0,3242.8,0.30841]
[1736477644303,3.654,3243.2,3242.9,0.30841]
[1736477644603,3.654,3243.2,3243.1,0.30839]
[1736477645304,3.2078,3243.2,3243.1,0.30839]
[1736477645501,3.2078,3243.2,3242.5,0.9105]
[1736477645800,1.91594349,3243.0,3242.9,0.3084]
[1736477648404,1.91594349,3243.0,3242.8,0.30841]
[1736477648698,1.91594349,3243.0,3242.9,0.30841]
[1736477649405,1.91594349,3243.0,3242.8,0.30841]
[1736477650505,1.91594349,3243.0,3242.9,0.30841]
[1736477652503,1.91594349,3243.0,3242.1,3.2078]
[1736477652802,0.4634,3243.1,3242.1,3.2078]
[1736477652803,1.91594349,3242.7,3242.6,0.30844]
[1736477653210,1.91594349,3242.7,3242.4,0.30845]
[1736477653410,1.91594349,3242.7,3242.5,0.30844]
[1736477653803,2.22437349,3242.7,3242.4,0.30845]
[1736477654003,1.91594349,3242.7,3242.5,0.30844]
[1736477654508,1.91594349,3242.7,3242.6,0.30844]
[1736477656205,1.91594349,3242.7,3242.2,0.451]
[1736477656503,0.4634,3243.1,3242.4,3.2078]
[1736477657311,0.4634,3243.1,3242.5,0.30845]
[1736477657506,1.91594349,3243.0,3242.4,3.2078]
[1736477657902,2.68584349,3243.0,3242.7,0.30842]
[1736477658104,2.37744349,3243.0,3242.8,0.30842]
[1736477658407,2.37744349,3243.0,3242.4,3.2078]
[1736477658705,2.22437349,3242.7,3242.4,3.51625]
[1736477658907,1.91594349,3242.7,3242.6,0.30844]
[1736477659709,2.37744349,3243.0,3242.2,0.77119]
[1736477659915,2.37744349,3243.0,3242.8,0.30841]
[1736477660108,2.37744349,3243.0,3242.9,0.30841]
[1736477660304,2.68584349,3243.0,3242.7,0.30842]
[1736477661512,2.37744349,3243.0,3242.1,0.9122]
[1736477661709,2.37744349,3243.0,3242.3,0.30846]
[1736477661913,2.37744349,3243.0,3242.2,0.77119]
[1736477662717,2.37744349,3243.0,3242.8,0.30841]
[1736477663312,2.37744349,3243.0,3242.2,0.77119]
[1736477663518,2.37744349,3243.0,3242.8,0.30841]
[1736477665015,2.37744349,3243.0,3242.9,0.30841]
[1736477666615,0.4615,3243.0,3242.9,0.30841]
[1736477675226,3.2078,3243.3,3243.2,0.30838]
[1736477675914,0.9375,3243.5,3243.4,0.30836]
[1736477677923,0.4792,3243.5,3243.4,0.30836]
[1736477681325,0.30836,3243.4,3243.2,0.30838]
[1736477681625,1.91594349,3243.1,3242.9,0.3084]
[1736477681823,0.9316,3243.0,3242.9,0.3084]
[1736477682023,1.3882,3243.0,3242.9,0.3084]
[1736477684629,0.9153,3243.0,3242.9,0.3084]
[1736477684831,3.2078,3243.3,3243.2,0.30838]
[1736477685321,3.6579,3243.3,3243.2,0.30838]
[1736477686031,0.4501,3243.3,3243.2,0.30838]
[1736477686226,5.12374349,3243.7,3243.6,0.30834]
[1736477686527,3.2078,3243.7,3243.6,0.30834]
[1736477687124,3.2078,3244.1,3243.3,0.9022]
[1736477687324,3.2078,3244.1,3244.0,0.3083]
[1736477687521,3.2078,3244.5,3244.0,3.2078]
[1736477687726,3.2078,3244.5,3244.4,0.30826]
[1736477687931,0.4761,3244.7,3244.1,41.714]
[1736477688230,3.2078,3244.9,3244.8,0.30823]
[1736477696227,5.12374349,3244.9,3244.5,0.30826]
[1736477696427,1.91594349,3244.6,3244.1,0.914]
[1736477696627,0.4636,3244.5,3244.4,0.30826]
[1736477701835,0.4429,3244.7,3244.6,0.30825]
[1736477702031,5.12374349,3244.9,3244.2,0.77072]
[1736477702233,5.12374349,3244.9,3244.8,0.30823]
[1736477702733,5.12374349,3244.9,3244.2,1.24662]
[1736477703037,0.4328,3244.8,3244.7,0.30824]
[1736477707334,1.18373,3244.8,3244.5,0.30825]
[1736477712335,0.8755,3244.8,3244.1,0.914]
[1736477712536,0.8755,3244.8,3244.7,0.30824]
[1736477712730,0.8755,3244.8,3244.6,0.30824]
[1736477713341,0.8755,3244.8,3244.1,0.914]
[1736477713643,1.91594349,3244.6,3244.3,0.30827]
[1736477714038,0.4776,3244.5,3244.3,0.30827]
[1736477714342,0.4776,3244.5,3244.4,0.30826]
[1736477717541,0.78586,3244.5,3244.3,0.30827]
[1736477717843,0.4776,3244.5,3244.3,0.30827]
[1736477719050,0.4776,3244.5,3244.4,0.30826]
[1736477720344,5.12374349,3244.6,3243.8,41.2778]
[1736477720345,3.2078,3244.6,3243.9,0.77078]
[1736477720545,3.2078,3244.6,3244.5,0.30826]
[1736477724245,0.4365,3244.7,3244.5,0.30826]
[1736477724451,0.4365,3244.7,3244.6,0.30825]
[1736477725149,0.4365,3244.7,3244.5,0.30825]
[1736477725849,0.4365,3244.7,3244.6,0.30825]
[1736477727646,0.4328,3244.8,3244.1,3.2078]
[1736477727849,0.4328,3244.8,3244.7,0.30824]
[1736477730154,1.91594349,3244.9,3244.8,0.30823]
[1736477733755,1.91594349,3244.9,3244.7,0.30823]
[1736477734152,1.91594349,3244.9,3244.8,0.30823]
[1736477736053,1.91594349,3244.9,3244.7,0.30823]
[1736477736957,1.91594349,3244.9,3244.2,1.67091]
[1736477737158,3.2078,3245.1,3244.4,3.2078]
[1736477737458,0.9271,3245.3,3244.5,0.77065]
[1736477737661,0.9271,3245.3,3245.2,0.30819]
[1736477737862,0.9271,3245.3,3244.5,1.21555]
[1736477738061,0.9271,3245.3,3245.1,0.30819]
[1736477738257,1.23528,3245.3,3245.1,0.30819]
[1736477738856,0.9271,3245.3,3245.1,0.30819]
[1736477740165,0.9271,3245.3,3244.8,3.6683]
[1736477740463,5.12374349,3245.5,3244.8,3.6683]
[1736477740464,3.2078,3245.5,3245.3,0.30818]
[1736477740656,3.2078,3245.5,3245.2,0.30818]
[1736477741058,0.4764,3245.4,3245.2,0.30818]
[1736477741854,3.2078,3245.5,3244.8,3.6683]
[1736477742050,0.4329,3245.7,3245.2,3.2078]
[1736477742251,1.91594349,3245.8,3245.3,0.445]
[1736477742454,2.22408349,3245.8,3245.2,0.30818]
[1736477742956,1.91594349,3245.8,3244.8,4.1133]
[1736477743359,1.91594349,3245.8,3245.3,0.30817]
[1736477743562,0.30814,3245.7,3245.2,0.30818]
[1736477743862,2.22407349,3245.8,3244.8,4.1133]
[1736477744053,0.30814,3245.7,3245.2,0.30818]
[1736477744453,3.6626,3245.9,3244.8,4.1133]
[1736477744650,1.91594349,3245.2,3244.8,0.30822]
[1736477744857,4.1291,3245.1,3244.8,0.30822]
[1736477745055,4.5995,3245.1,3244.8,0.30822]
[1736477745765,4.5995,3245.1,3244.9,0.30822]
[1736477746255,4.5995,3245.1,3244.9,0.30821]
[1736477747256,4.5995,3245.1,3245.0,0.30821]
[1736477748463,3.2078,3245.1,3245.0,0.30821]
[1736477748866,3.2078,3245.1,3245.0,41.10821]
[1736477749962,0.4718,3245.3,3245.2,0.30819]
[1736477750358,0.921,3245.3,3245.2,0.30819]
[1736477755765,3.2078,3245.6,3245.0,0.9288]
[1736477755965,1.3593,3245.9,3245.8,0.30813]
[1736477761775,3.2078,3246.0,3245.9,0.30812]
[1736477766281,1.91594349,3246.4,3246.3,0.30808]
[1736477766484,5.12374349,3246.4,3246.3,0.30808]
[1736477770774,3.2078,3246.4,3246.3,0.30808]
[1736477771386,0.4659,3246.6,3246.5,0.30807]
[1736477772184,0.4659,3246.6,3245.6,4.5278]
[1736477772383,1.91594349,3245.9,3245.8,0.30813]
[1736477775892,5.12374349,3245.9,3245.8,0.30813]
[1736477776793,3.2078,3245.9,3245.8,0.30813]
[1736477777688,5.12374349,3245.9,3245.2,40.8]
[1736477777989,3.2078,3245.5,3245.4,0.30816]
[1736477778194,3.2078,3245.5,3245.3,0.30817]
[1736477778394,0.4467,3245.4,3245.3,0.30817]
[1736477778686,0.4467,3245.4,3245.2,41.58278]
[1736477778997,0.4467,3245.4,3245.3,0.30818]
[1736477780496,0.4467,3245.4,3244.9,40.8]
[1736477780696,1.91594349,3245.3,3244.9,40.8]
[1736477780889,1.91594349,3245.3,3245.0,0.3082]
[1736477781488,2.22412349,3245.3,3244.9,41.10821]
[1736477781692,3.2078,3245.1,3244.9,41.10821]
[1736477781894,3.2078,3245.1,3245.0,0.30821]
[1736477783301,1.91594349,3245.3,3245.0,0.30821]
[1736477783594,1.91594349,3245.3,3244.9,40.8]
[1736477783892,1.91594349,3245.3,3245.1,0.3082]
[1736477784794,1.91594349,3245.3,3244.9,40.18116]
[1736477784998,0.30825,3244.6,3244.1,0.30828]
[1736477785193,5.12374349,3244.4,3244.1,0.30829]
[1736477785387,5.12374349,3244.4,3243.8,0.929]
[1736477785700,3.2078,3244.4,3244.3,0.30827]
[1736477786792,4.0961,3244.8,3244.2,3.2078]
[1736477787099,4.0961,3244.8,3244.7,0.30824]
[1736477789197,11.01204349,3244.8,3244.1,40.8]
[1736477789406,1.91594349,3244.2,3243.4,8.51728495]
[1736477789899,1.91594349,3244.2,3243.6,0.30834]
[1736477790194,1.91594349,3244.2,3243.5,40.8]
[1736477790195,1.91594349,3244.2,3244.1,0.30829]
[1736477791495,1.91594349,3244.2,3244.0,0.3083]
[1736477792097,1.91594349,3244.2,3244.1,0.30829]
[1736477792899,1.91594349,3244.2,3244.1,40.8]
[1736477793092,2.82584349,3244.2,3243.0,3.2078]
[1736477793292,1.91594349,3243.6,3243.5,0.30834]
[1736477796104,1.91594349,3243.6,3243.5,41.10834]
[1736477796998,1.91594349,3243.6,3243.5,40.8]
[1736477797205,2.22429349,3243.6,3243.4,0.4334]
[1736477797405,0.9222,3243.5,3243.2,0.30838]
[1736477797609,1.91594349,3243.3,3243.2,0.30838]
[1736477798305,1.91594349,3243.3,3243.2,40.8]
[1736477798809,1.91594349,3243.3,3243.2,41.10838]
[1736477802307,3.2078,3243.7,3243.2,40.8]
[1736477802503,3.2078,3243.7,3243.6,0.30834]
[1736477803211,3.2078,3244.1,3244.0,0.3083]
[1736477805409,5.12374349,3244.5,3244.4,0.30827]
[1736477805804,5.12374349,3244.5,3244.4,41.10827]
[1736477806013,1.3432,3245.3,3244.7,0.30824]
[1736477806014,1.91594349,3244.8,3244.7,0.30824]
[1736477807111,2.34964349,3244.8,3244.7,0.30824]
[1736477808606,2.34964349,3244.8,3244.5,0.4367]
[1736477809012,0.30824,3244.7,3244.4,40.8]
[1736477809201,5.12374349,3244.5,3244.2,0.30828]
[1736477809405,5.12374349,3244.5,3243.8,0.4741]
[1736477809711,5.12374349,3244.5,3244.1,0.30829]
[1736477809712,3.51606,3244.5,3244.1,0.30829]
[1736477810308,3.51606,3244.5,3243.3,6.1258]
[1736477810309,3.2078,3244.5,3243.3,3.2078]
[1736477810510,0.4751,3244.6,3243.5,0.30834]
[1736477810511,0.30831,3244.0,3243.5,0.30834]
[1736477810715,0.30831,3244.0,3243.5,0.30835]
[1736477810716,1.91594349,3243.6,3243.5,0.30835]
[1736477812315,3.25694349,3243.9,3243.8,0.30832]
[1736477816219,3.25694349,3243.9,3243.4,40.8]
[1736477816220,3.56526349,3243.9,3243.6,0.30834]
[1736477816421,3.25694349,3243.9,3243.4,40.8]
[1736477816713,3.56526349,3243.9,3243.5,0.30834]
[1736477817317,3.25694349,3243.9,3243.6,0.30833]
[1736477817708,3.56526349,3243.9,3243.6,0.30833]
[1736477818522,3.25694349,3243.9,3243.6,0.30833]
[1736477819823,3.56525349,3243.9,3243.6,0.30833]
[1736477820026,3.25694349,3243.9,3243.6,0.30833]
[1736477820324,3.2078,3243.7,3243.6,0.30833]
[1736477822128,3.2078,3243.7,3243.4,40.8]
[1736477822318,2.22429349,3243.6,3243.4,40.8]
[1736477822520,1.91594349,3243.6,3243.4,40.8]
[1736477822716,1.91594349,3243.6,3243.4,41.10836]
[1736477823925,1.91594349,3243.6,3243.4,40.8]
[1736477824115,1.91594349,3243.6,3242.9,3.2078]
[1736477824315,1.91594349,3243.0,3242.2,0.4454]
[1736477824518,3.2078,3242.8,3242.2,5.30818495]
[1736477824723,3.2078,3242.8,3242.7,0.30843]
[1736477825727,3.2078,3243.3,3243.1,0.30838]
[1736477826134,0.473,3243.2,3243.1,0.30838]
[1736477827234,0.473,3243.2,3243.1,0.30839]
[1736477828323,3.2078,3243.7,3242.8,41.2454]
[1736477828529,3.2078,3244.2,3243.4,3.2078]
[1736477828735,1.91594349,3244.5,3243.8,3.2078]
[1736477829034,4.5933,3244.6,3243.9,40.8]
[1736477829329,4.5933,3244.6,3244.4,0.30826]
[1736477829635,4.1239,3244.6,3244.0,0.4734]
[1736477829934,4.1239,3244.6,3244.3,0.30827]
[1736477830534,4.1239,3244.6,3244.0,0.4734]
[1736477830733,4.1239,3244.6,3244.4,0.30826]
[1736477830934,4.1239,3244.6,3244.1,0.4409]
[1736477831133,4.1239,3244.6,3244.5,0.30826]
[1736477831935,4.1239,3244.6,3244.4,0.30826]
[1736477833428,1.91594349,3244.5,3244.2,0.30828]
[1736477833635,2.37864349,3244.5,3244.2,0.30828]
[1736477833838,2.37864349,3244.5,3244.0,0.4734]
[1736477834130,2.37864349,3244.5,3244.1,0.30829]
[1736477834834,1.91594349,3244.2,3243.8,3.2078]
[1736477835027,0.4453,3244.1,3244.0,0.3083]
[1736477844140,0.3083,3244.0,3243.6,0.30834]
[1736477844339,0.3083,3244.0,3242.7,0.77106]
[1736477844340,0.30833,3243.7,3243.4,0.30836]
[1736477844541,2.22428349,3243.6,3243.2,0.74157]
[1736477844741,2.22428349,3243.6,3243.2,0.30837]
[1736477844742,3.2078,3243.4,3243.2,0.30837]
[1736477844943,0.3084,3243.0,3242.9,4.83278495]
[1736477845138,5.43214349,3243.0,3242.8,7.13614676]
[1736477845333,5.12374349,3243.0,3242.6,40.8]
[1736477845539,1.91594349,3242.7,3242.4,4.83278495]
[1736477845738,3.2078,3242.5,3242.4,4.83278495]
[1736477846137,3.2078,3242.5,3242.4,5.14124495]
[1736477846339,3.2078,3242.5,3242.4,0.30846]
[1736477848046,3.2078,3242.5,3242.3,40.8]
[1736477848344,3.2078,3242.5,3242.3,41.10846]
[1736477848540,3.2078,3242.5,3242.3,40.8]
[1736477848748,3.2078,3242.5,3242.4,0.30846]
[1736477849546,3.2078,3242.5,3242.3,41.10846]
[1736477850347,3.2078,3242.5,3242.4,0.30846]
[1736477850641,3.2078,3242.5,3242.3,40.8]
[1736477850846,3.2078,3242.5,3242.3,41.10846]
[1736477851149,1.91594349,3242.4,3242.3,0.30846]
[1736477852254,3.2078,3242.5,3242.4,0.30846]
[1736477852843,3.2078,3242.5,3242.2,0.30847]
[1736477853048,1.91594349,3242.3,3242.2,0.30847]
[1736477854448,0.3085,3242.0,3241.5,0.30854]
[1736477854638,3.2078,3241.8,3241.7,0.30852]
[1736477858441,3.2078,3241.8,3241.7,41.10852]
[1736477858643,0.4384,3242.4,3241.7,41.10852]
[1736477858644,3.2078,3242.2,3242.1,0.30848]
[1736477858845,1.91594349,3242.5,3242.4,0.30846]
[1736477859047,3.2078,3242.7,3241.8,4.141]
[1736477859351,3.2078,3242.7,3242.6,0.30844]
[1736477864558,0.4386,3243.0,3242.2,3.2078]
[1736477864744,0.4386,3243.0,3242.9,0.30841]
[1736477865147,1.91594349,3243.1,3243.0,0.3084]
[1736477865853,3.2078,3243.2,3243.1,0.30839]
[1736477866249,2.37314349,3243.4,3243.3,0.30837]
[1736477867452,3.2078,3243.6,3243.5,0.30835]
[1736477868243,5.12374349,3244.0,3243.7,0.30832]
[1736477868447,5.12374349,3244.0,3243.8,0.30832]
[1736477870754,5.12374349,3244.0,3243.3,0.30837]
[1736477870955,5.12374349,3244.0,3243.8,0.30832]
[1736477872349,5.12374349,3244.0,3243.3,0.30837]
[1736477872546,5.12374349,3244.0,3243.8,0.30832]
[1736477874658,5.12374349,3244.0,3243.9,0.30831]
[1736477877258,5.12374349,3244.0,3243.2,0.913]
[1736477877559,1.91594349,3243.4,3243.3,0.30837]
[1736477878561,1.91594349,3243.4,3242.8,0.4571]
[1736477878862,1.91594349,3243.4,3243.2,0.30838]
[1736477878863,0.4518,3243.3,3243.2,0.30838]
[1736477879060,0.4518,3243.3,3242.7,41.2566]
[1736477879357,1.91594349,3243.0,3242.8,0.30841]
[1736477880560,0.4717,3242.9,3242.8,0.30841]
[1736477880763,3.2078,3243.1,3243.0,0.3084]
[1736477885159,3.2078,3243.1,3242.7,41.2566]
[1736477885160,3.6565,3243.5,3243.4,0.30836]
[1736477885361,3.2078,3243.5,3243.4,0.30836]
[1736477885757,5.56314349,3243.9,3242.9,0.4568]
[1736477885963,5.56314349,3243.9,3243.8,0.30832]
[1736477886164,5.56314349,3243.9,3243.8,41.10832]
[1736477891374,5.56314349,3243.9,3243.8,0.30832]
[1736477894465,5.87146349,3243.9,3243.6,0.30834]
[1736477894673,5.56314349,3243.9,3243.2,0.4383]
[1736477895076,5.56314349,3243.9,3243.8,0.30832]
[1736477900673,2.35534349,3243.9,3243.8,0.30832]
[1736477900978,5.56314349,3243.9,3243.8,0.30832]
[1736477901677,2.35534349,3243.9,3243.8,0.30832]
[1736477901883,5.56314349,3243.9,3243.8,0.30832]
[1736477902778,5.56314349,3243.9,3243.4,0.30836]
[1736477902779,5.87146349,3243.9,3243.4,0.30836]
[1736477902978,5.87146349,3243.9,3243.6,0.30834]
[1736477902979,0.30833,3243.8,3243.6,0.30834]
[1736477903176,5.56314349,3243.9,3243.6,0.30834]
[1736477903373,5.87146349,3243.9,3243.6,0.30834]
[1736477903774,5.87146349,3243.9,3243.3,0.30837]
[1736477903975,5.12374349,3243.6,3243.5,0.30835]
[1736477904485,6.07664349,3243.6,3243.5,0.30835]
[1736477905482,3.2078,3243.6,3243.5,0.30835]
[1736477910278,3.5161,3244.0,3243.3,40.8]
[1736477910478,3.5161,3244.0,3243.7,0.30833]
[1736477911283,0.30831,3243.9,3243.7,0.30833]
[1736477912491,0.30832,3243.8,3243.7,0.30833]
[1736477912690,3.2078,3244.0,3243.7,0.30833]
[1736477912893,0.30832,3243.9,3243.7,0.30833]
[1736477913784,3.51611,3244.0,3243.8,0.30832]
[1736477914684,0.30831,3243.9,3243.8,0.30832]
[1736477915196,3.51611,3243.9,3243.7,0.30832]
[1736477915991,0.30831,3243.9,3243.7,0.30832]
[1736477916189,3.2078,3243.8,3243.7,0.30833]
[1736477918691,3.2078,3243.8,3243.6,0.30834]
[1736477919088,3.2078,3243.8,3243.2,0.4383]
[1736477919391,2.22430349,3243.5,3243.2,0.74667]
[1736477919592,2.22429349,3243.5,3243.3,0.30837]
[1736477919792,1.91594349,3243.5,3243.2,0.4383]
[1736477919989,0.30836,3243.4,3243.1,0.30838]
[1736477920392,3.51616,3243.4,3243.1,0.30838]
[1736477920794,3.51616,3243.4,3242.9,0.7536]
[1736477920795,2.22432349,3243.2,3242.9,0.7536]
[1736477921099,3.2078,3243.0,3242.9,0.4452]
[1736477921394,3.2078,3243.0,3242.9,0.75361]
[1736477924496,3.2078,3243.0,3242.5,40.8]
[1736477924704,3.2078,3242.6,3242.5,40.8]
[1736477925906,3.2078,3242.6,3242.5,41.10845]
[1736477927707,3.2078,3242.6,3242.5,0.30845]
[1736477928301,1.91594349,3242.7,3242.5,0.30845]
[1736477928802,3.2078,3242.6,3242.5,0.30845]
[1736477929605,3.2078,3243.0,3242.8,0.30841]
[1736477929801,5.12374349,3243.0,3242.8,0.30841]
[1736477930008,5.12374349,3243.0,3242.9,40.8]
[1736477930709,5.12374349,3243.0,3242.8,0.30841]
[1736477930906,5.43214349,3243.0,3242.7,0.30842]
[1736477931205,5.43214349,3243.0,3242.8,40.8]
[1736477931506,5.43214349,3243.0,3242.7,0.30842]
[1736477931908,5.43214349,3243.0,3242.7,41.10842]
[1736477932209,5.43214349,3243.0,3242.7,40.8]
[1736477932411,5.12374349,3243.0,3242.8,0.30842]
[1736477933410,0.4616,3242.9,3242.4,0.4574]
[1736477933709,5.43218349,3242.6,3242.4,0.76585]
[1736477934003,0.74825,3242.5,3242.4,0.4574]
[1736477934205,0.74825,3242.5,3242.2,41.10847]
[1736477934411,0.4616,3242.4,3242.3,0.30846]
[1736477935506,0.74825,3242.5,3242.2,40.8]
[1736477935507,0.4398,3242.5,3242.2,40.8]
[1736477935810,0.4398,3242.5,3242.4,0.30846]
[1736477937709,0.4398,3242.5,3242.2,40.8]
[1736477937710,0.4398,3242.5,3242.3,0.30846]
[1736477938509,5.12374349,3242.6,3242.5,0.30845]
[1736477938708,5.12374349,3242.6,3242.4,0.30845]
[1736477939110,5.12374349,3242.6,3242.5,0.74245]
[1736477940009,5.12374349,3242.6,3242.5,0.434]
[1736477940507,5.12374349,3242.6,3242.5,0.74245]
[1736477941908,5.43218349,3242.6,3242.5,0.434]
[1736477942814,5.12374349,3242.6,3242.1,0.4767]
[1736477943016,0.76145,3242.5,3242.3,0.30846]
[1736477943215,0.76076,3242.4,3242.2,0.4576]
[1736477943416,1.91594349,3242.3,3242.2,0.76607]
[1736477943915,5.12374349,3242.6,3242.2,0.4576]
[1736477944218,3.2078,3242.6,3242.5,0.30845]
[1736477945413,0.453,3243.0,3242.3,0.4785]
[1736477945414,3.2078,3243.0,3242.3,0.4785]
[1736477945611,1.91594349,3243.2,3243.0,0.30839]
[1736477945809,1.91594349,3243.2,3243.1,0.4471]
[1736477946412,2.22432349,3243.2,3243.1,0.4471]
[1736477946617,2.22432349,3243.2,3242.9,0.3084]
[1736477946618,0.30839,3243.1,3242.9,0.3084]
[1736477948115,2.22432349,3243.2,3243.0,0.3084]
[1736477948318,2.22433349,3243.2,3242.9,0.3084]
[1736477948817,1.91594349,3243.2,3242.9,0.3084]
[1736477949018,0.30841,3242.9,3242.7,0.30842]
[1736477949220,1.91594349,3242.8,3242.7,0.30842]
[1736477949517,2.83094349,3242.8,3242.7,0.30842]
[1736477951417,2.83094349,3242.8,3242.6,0.30843]
[1736477954017,2.83094349,3242.8,3242.7,0.30843]
[1736477954218,3.2078,3243.0,3242.5,0.4505]
[1736477954414,3.2078,3243.0,3242.9,0.30841]
[1736477956623,1.91594349,3243.1,3243.0,0.3084]
[1736477957028,1.91594349,3243.1,3242.5,0.4505]
[1736477957226,1.91594349,3243.1,3242.9,0.3084]
[1736477957428,1.91594349,3243.1,3243.0,0.4551]
[1736477958125,1.91594349,3243.1,3243.0,0.7635]
[1736477961428,2.22433349,3243.1,3242.9,0.3084]
[1736477961625,1.91594349,3243.1,3242.7,0.30843]
[1736477961825,1.91594349,3243.1,3242.6,0.474]
[1736477963030,1.91594349,3243.1,3242.9,0.3084]
[1736477963231,1.91594349,3243.1,3243.0,0.3084]
[1736477964929,2.22433349,3243.1,3242.9,0.3084]
[1736477965233,1.91594349,3243.1,3243.0,0.3084]
[1736477972232,2.22433349,3243.1,3243.0,0.3084]
[1736477972436,1.91594349,3243.1,3243.0,0.3084]
[1736477976134,2.36804349,3243.1,3243.0,0.3084]
[1736477976737,2.36804349,3243.1,3242.9,0.30841]
[1736477977245,2.36804349,3243.1,3242.6,0.474]
[1736477977439,2.67643349,3243.1,3242.9,0.30841]
[1736477978038,2.36804349,3243.1,3242.9,0.30841]
[1736477978736,2.36804349,3243.1,3242.6,0.474]
[1736477978939,2.36804349,3243.1,3242.9,0.3084]
[1736477979340,0.91366352,3243.0,3242.9,0.3084]
[1736477982438,1.82732704,3243.0,3242.6,0.474]
[1736477982640,3.2078,3242.9,3242.7,0.30842]
[1736477982838,3.2078,3242.9,3242.6,0.474]
[1736477983041,0.91366352,3242.7,3242.6,0.78244]
[1736477983235,4.12146352,3242.9,3242.6,0.474]
[1736477983438,0.91366352,3242.9,3242.8,0.30842]
[1736477994345,3.99517,3243.3,3242.6,0.474]
[1736477994346,3.6868,3243.3,3242.6,0.474]
[1736477994545,3.6868,3243.3,3243.2,0.30838]
[1736477995946,4.60046352,3243.3,3243.1,0.30838]
[1736477996343,4.60046352,3243.3,3242.9,0.3084]
[1736477996647,0.91366352,3243.0,3242.9,0.3084]
[1736478000444,0.91366352,3243.2,3243.1,0.30839]
[1736478000747,3.2078,3243.7,3243.6,0.30834]
[1736478001054,3.2078,3243.7,3243.6,41.10834]
[1736478001250,4.1208,3244.1,3243.6,41.71366352]
[1736478001548,0.91366352,3244.3,3244.2,0.30828]
[1736478003052,3.2078,3244.5,3244.0,0.91366352]
[1736478003253,15.39399,3248.6,3244.0,1.92753979]
[1736478003254,3.2078,3244.9,3244.0,1.92753979]
[1736478003443,1.92753979,3244.8,3244.3,3.2078]
[1736478003644,1.92753979,3244.8,3244.2,0.30828]
[1736478003645,1.92753979,3244.5,3244.2,0.30828]
[1736478003852,5.13533979,3244.5,3244.1,0.30829]
[1736478004151,5.13533979,3244.5,3243.8,4.83278495]
[1736478004152,0.3083,3244.1,3243.8,4.83278495]
[1736478004343,1.92753979,3243.9,3243.8,4.83278495]
[1736478004661,2.23584979,3243.9,3243.8,4.83278495]
[1736478004954,2.23584979,3243.9,3243.4,0.30836]
[1736478005348,1.92753979,3243.9,3243.5,0.30835]
[1736478006256,2.23584979,3243.9,3243.4,0.30836]
[1736478006653,0.30833,3243.8,3242.8,0.4347]
[1736478006952,1.3505,3244.0,3242.8,0.4347]
[1736478006953,5.13533979,3243.6,3243.3,0.30837]
[1736478007159,0.8706,3243.5,3243.4,0.30836]
[1736478010654,1.3321,3243.5,3243.4,0.30836]
[1736478011453,3.2078,3243.6,3243.5,0.30835]
[1736478011653,3.2078,3244.0,3243.9,0.30831]
[1736478011955,3.2078,3244.0,3243.9,41.10831]
[1736478012851,3.2078,3244.0,3243.9,0.30831]
[1736478013050,1.92753979,3244.2,3243.4,0.937]
[1736478013259,1.92753979,3244.2,3243.8,0.30832]
[1736478013260,0.4793,3243.9,3243.8,0.30832]
[1736478013557,2.40683979,3243.9,3243.7,0.30833]
[1736478013754,0.9005,3243.8,3243.7,0.30833]
[1736478014457,0.9005,3243.8,3243.5,40.8]
[1736478014660,1.92753979,3243.6,3242.9,0.4777]
[1736478014860,1.92753979,3243.6,3243.4,0.30836]
[1736478015162,7.10009555,3243.5,3242.5,4.83278495]
[1736478015364,5.13533979,3242.6,3242.5,4.83278495]
[1736478015755,5.13533979,3242.6,3242.5,5.14123495]
[1736478015950,3.2078,3242.6,3242.5,5.14123495]
[1736478016259,1.92753979,3242.9,3242.8,0.30842]
[1736478016555,3.2078,3243.4,3242.5,0.4777]
[1736478016556,2.36143979,3243.2,3243.0,0.3084]
[1736478017251,2.36143979,3243.2,3242.6,0.4667]
[1736478017855,3.2078,3243.4,3243.2,0.30838]
[1736478018358,3.2078,3243.4,3242.7,3.2078]
[1736478018567,3.2078,3243.4,3243.3,0.30837]
[1736478018762,3.2078,3243.4,3242.8,0.4715]
[1736478018966,3.2078,3243.4,3243.3,0.30837]
[1736478019166,3.2078,3243.4,3243.3,41.10837]
[1736478019864,1.92753979,3243.5,3243.4,0.30836]
[1736478020071,1.92753979,3243.5,3243.3,41.10837]
[1736478020368,1.92753979,3243.5,3243.4,0.4715]
[1736478022373,1.92753979,3243.5,3243.3,40.8]
[1736478022673,4.1278,3243.4,3242.9,0.30841]
[1736478022864,1.92753979,3243.2,3242.9,0.30841]
[1736478023062,1.92753979,3243.2,3242.8,0.462]
[1736478023063,1.92753979,3243.2,3243.1,0.30839]
[1736478023264,1.92753979,3243.2,3243.0,40.8]
[1736478023671,1.92753979,3243.2,3243.1,0.30839]
[1736478025568,0.4402,3243.6,3243.5,0.30835]
[1736478026470,5.44365979,3243.8,3243.4,0.30836]
[1736478026672,0.459,3243.7,3243.5,0.4439]
[1736478027776,0.459,3243.7,3243.5,0.75225]
[1736478028776,0.459,3243.7,3243.5,0.4439]
[1736478028970,0.459,3243.7,3243.1,0.4614]
[1736478029177,1.92753979,3243.2,3243.1,0.4349]
[1736478029374,1.92753979,3243.2,3243.1,0.74329]